Workbook

Sheet паспорт
A1: ПАТ "УКРТРАНСГАЗ" | G1: ПАСПОРТ ФІЗИКО-ХІМІЧНИХ ПОКАЗНИКІВ ПРИРОДНОГО ГАЗУ № 679
A2: Філія "УМГ "ХАРКІВТРАНСГАЗ" | F2: переданого Краматорським ЛВУМГ та прийнятого ПАТ "ДОНЕЦЬКОБЛГАЗ",
A3: Сєвєродонецьке ЛВУМГ | G3: Маршрут № 679
A4: Вимірювальна хіміко-аналітична лабораторія
A5: Свідоцтво № РЬ089/2014 чинно до 06.06.2017 р. | H5: по газопроводу "Амвросіївка-Горловка-Слов'янськ" | V5: за період з | X5: 01.02.2017 р. | Z5: по | AA5: 28.02.2017 р.
A7: Число місяця | B7: Компонентний склад, мол. % | N7: Фізико-хімічні показники газу обчислені на основі компонентного складу, 101,325 кПа | X7: Температура точки роси за вологою (Р = 3.92 МПа), °С | Y7: Температура точки роси за вуглеводнями, °С | Z7: Вміст сірководню, г/м3 | AA7: Вміст меркаптанової сірки, г/м3 | AB7: Вміст механічних домішок, г/м3
N8: Густина абсолютна, кг/м3,при 20 °С, | O8: Температура вимірювання/згоряння при 20/25°С
B9: метан, С1 | C9: етан, С2 | D9: пропан, С3 | E9: ізо-бутан, і-С4 | F9: н-бутан, н-С4 | G9: нео-пентан, нео-С5 | H9: ізо-пентан, і-С5 | I9: н-пентан, н-С5 | J9: гексани та вищі, С6+ | K9: кисень, О2 | L9: азот, N2 | M9: діоксид вуглецю, CО2 | O9: Теплота згоряння нижча | R9: Теплота згоряння вища | U9: Число Воббе вище
O10: ккал/м³ | P10: МДж/м³ | Q10: кВт⋅год/м³ | R10: ккал/м³ | S10: МДж/м³ | T10: кВт⋅год/м³ | U10: ккал/м³ | V10: МДж/м³ | W10: кВт⋅год/м³
A11: 1 | L11: 2.991 | M11: 0.3252 | N11: 0.72 | O11: 8068.214502 | P11: 33.78 | Q11: 9.383333333 | R11: 8940.002037 | S11: 37.43 | T11: 10.39722222 | U11: 11564.91848 | V11: 48.42 | W11: 13.45 | AC11: =SUM(B11:M11)+$K$42+$N$42 -> 3.3162
A12: 2 | L12: 2.991 | M12: 0.3252 | N12: 0.72 | O12: 8068.214502 | P12: 33.78 | Q12: 9.383333333 | R12: 8940.002037 | S12: 37.43 | T12: 10.39722222 | U12: 11564.91848 | V12: 48.42 | W12: 13.45 | AC12: 3.3162
A13: 3 | L13: 2.991 | M13: 0.3252 | N13: 0.72 | O13: 8068.214502 | P13: 33.78 | Q13: 9.383333333 | R13: 8940.002037 | S13: 37.43 | T13: 10.39722222 | U13: 11564.91848 | V13: 48.42 | W13: 13.45 | AC13: 3.3162 | AD13: =IF(AC13=100,"ОК"," ") -> 
A14: 4 | L14: 2.991 | M14: 0.3252 | N14: 0.72 | O14: 8068.214502 | P14: 33.78 | Q14: 9.383333333 | R14: 8940.002037 | S14: 37.43 | T14: 10.39722222 | U14: 11564.91848 | V14: 48.42 | W14: 13.45 | AC14: 3.3162 | AD14: =IF(AC14=100,"ОК"," ") -> 
A15: 5 | L15: 2.991 | M15: 0.3252 | N15: 0.72 | O15: 8068.214502 | P15: 33.78 | Q15: 9.383333333 | R15: 8940.002037 | S15: 37.43 | T15: 10.39722222 | U15: 11564.91848 | V15: 48.42 | W15: 13.45 | AC15: 3.3162
A16: 6 | L16: 2.991 | M16: 0.3252 | N16: 0.72 | O16: 8068.214502 | P16: 33.78 | Q16: 9.383333333 | R16: 8940.002037 | S16: 37.43 | T16: 10.39722222 | U16: 11564.91848 | V16: 48.42 | W16: 13.45 | AC16: 3.3162
A17: 7 | L17: 2.991 | M17: 0.3252 | N17: 0.72 | O17: 8068.214502 | P17: 33.78 | Q17: 9.383333333 | R17: 8940.002037 | S17: 37.43 | T17: 10.39722222 | U17: 11564.91848 | V17: 48.42 | W17: 13.45 | AC17: 3.3162
A18: 8 | L18: 2.991 | M18: 0.3252 | N18: 0.72 | O18: 8068.214502 | P18: 33.78 | Q18: 9.383333333 | R18: 8940.002037 | S18: 37.43 | T18: 10.39722222 | U18: 11564.91848 | V18: 48.42 | W18: 13.45 | X18: -19.2 | Y18: -17.3 | Z18: 0.0003 | AA18: 0.004 | AB18: відс. | AC18: 3.3162
A19: 9 | L19: 2.991 | M19: 0.3252 | N19: 0.72 | O19: 8068.214502 | P19: 33.78 | Q19: 9.383333333 | R19: 8940.002037 | S19: 37.43 | T19: 10.39722222 | U19: 11564.91848 | V19: 48.42 | W19: 13.45 | AC19: 3.3162
A20: 10 | L20: 2.991 | M20: 0.3252 | N20: 0.72 | O20: 8068.214502 | P20: 33.78 | Q20: 9.383333333 | R20: 8940.002037 | S20: 37.43 | T20: 10.39722222 | U20: 11564.91848 | V20: 48.42 | W20: 13.45 | AC20: 3.3162
A21: 11 | L21: 2.991 | M21: 0.3252 | N21: 0.72 | O21: 8068.214502 | P21: 33.78 | Q21: 9.383333333 | R21: 8940.002037 | S21: 37.43 | T21: 10.39722222 | U21: 11564.91848 | V21: 48.42 | W21: 13.45 | AC21: 3.3162
A22: 12 | L22: 2.991 | M22: 0.3252 | N22: 0.72 | O22: 8068.214502 | P22: 33.78 | Q22: 9.383333333 | R22: 8940.002037 | S22: 37.43 | T22: 10.39722222 | U22: 11564.91848 | V22: 48.42 | W22: 13.45 | AC22: 3.3162
A23: 13 | L23: 2.991 | M23: 0.3252 | N23: 0.72 | O23: 8068.214502 | P23: 33.78 | Q23: 9.383333333 | R23: 8940.002037 | S23: 37.43 | T23: 10.39722222 | U23: 11564.91848 | V23: 48.42 | W23: 13.45 | AC23: 3.3162
A24: 14 | L24: 2.991 | M24: 0.3252 | N24: 0.72 | O24: 8068.214502 | P24: 33.78 | Q24: 9.383333333 | R24: 8940.002037 | S24: 37.43 | T24: 10.39722222 | U24: 11564.91848 | V24: 48.42 | W24: 13.45 | AC24: 3.3162
A25: 15 | L25: 2.991 | M25: 0.3252 | N25: 0.72 | O25: 8068.214502 | P25: 33.78 | Q25: 9.383333333 | R25: 8940.002037 | S25: 37.43 | T25: 10.39722222 | U25: 11564.91848 | V25: 48.42 | W25: 13.45 | AC25: 3.3162
A26: 16 | L26: 2.991 | M26: 0.3252 | N26: 0.72 | O26: 8068.214502 | P26: 33.78 | Q26: 9.383333333 | R26: 8940.002037 | S26: 37.43 | T26: 10.39722222 | U26: 11564.91848 | V26: 48.42 | W26: 13.45 | AC26: 3.3162
A27: 17 | L27: 2.991 | M27: 0.3252 | N27: 0.72 | O27: 8068.214502 | P27: 33.78 | Q27: 9.383333333 | R27: 8940.002037 | S27: 37.43 | T27: 10.39722222 | U27: 11564.91848 | V27: 48.42 | W27: 13.45 | AC27: 3.3162
A28: 18 | L28: 2.991 | M28: 0.3252 | N28: 0.72 | O28: 8068.214502 | P28: 33.78 | Q28: 9.383333333 | R28: 8940.002037 | S28: 37.43 | T28: 10.39722222 | U28: 11564.91848 | V28: 48.42 | W28: 13.45 | AC28: 3.3162
A29: 19 | L29: 2.991 | M29: 0.3252 | N29: 0.72 | O29: 8068.214502 | P29: 33.78 | Q29: 9.383333333 | R29: 8940.002037 | S29: 37.43 | T29: 10.39722222 | U29: 11564.91848 | V29: 48.42 | W29: 13.45 | AC29: 3.3162
A30: 20 | L30: 2.991 | M30: 0.3252 | N30: 0.72 | O30: 8068.214502 | P30: 33.78 | Q30: 9.383333333 | R30: 8940.002037 | S30: 37.43 | T30: 10.39722222 | U30: 11564.91848 | V30: 48.42 | W30: 13.45 | AC30: 3.3162 | AD30: =IF(AC30=100,"ОК"," ") -> 
A31: 21 | L31: 2.991 | M31: 0.3252 | N31: 0.72 | O31: 8068.214502 | P31: 33.78 | Q31: 9.383333333 | R31: 8940.002037 | S31: 37.43 | T31: 10.39722222 | U31: 11564.91848 | V31: 48.42 | W31: 13.45 | AC31: 3.3162
A32: 22 | L32: 2.991 | M32: 0.3252 | N32: 0.72 | O32: 8068.214502 | P32: 33.78 | Q32: 9.383333333 | R32: 8940.002037 | S32: 37.43 | T32: 10.39722222 | U32: 11564.91848 | V32: 48.42 | W32: 13.45 | AC32: 3.3162
A33: 23 | L33: 2.991 | M33: 0.3252 | N33: 0.72 | O33: 8068.214502 | P33: 33.78 | Q33: 9.383333333 | R33: 8940.002037 | S33: 37.43 | T33: 10.39722222 | U33: 11564.91848 | V33: 48.42 | W33: 13.45 | AC33: 3.3162 | AD33: =IF(AC33=100,"ОК"," ") -> 
A34: 24 | B34: 94.2426 | C34: 2.8061 | D34: 0.6865 | E34: 0.079 | F34: 0.0916 | G34: 0.0021 | H34: 0.0201 | I34: 0.0158 | J34: 0.0198 | K34: 0.0112 | L34: 1.708 | M34: 0.3174 | N34: 0.7095 | O34: 8129.19186 | P34: 34.0353 | Q34: 9.45425 | R34: 9008.86131 | S34: 37.7183 | T34: 10.47730556 | U34: 11738.12952 | V34: 49.1452 | W34: 13.65144444 | AC34: 100.0002
A35: 25 | L35: 1.708 | M35: 0.3174 | N35: 0.7095 | O35: 8129.19186 | P35: 34.0353 | Q35: 9.45425 | R35: 9008.86131 | S35: 37.7183 | T35: 10.47730556 | U35: 11738.12952 | V35: 49.1452 | W35: 13.65144444 | AC35: 2.0254
A36: 26 | L36: 1.708 | M36: 0.3174 | N36: 0.7095 | O36: 8129.19186 | P36: 34.0353 | Q36: 9.45425 | R36: 9008.86131 | S36: 37.7183 | T36: 10.47730556 | U36: 11738.12952 | V36: 49.1452 | W36: 13.65144444 | AC36: 2.0254
A37: 27 | L37: 1.708 | M37: 0.3174 | N37: 0.7095 | O37: 8129.19186 | P37: 34.0353 | Q37: 9.45425 | R37: 9008.86131 | S37: 37.7183 | T37: 10.47730556 | U37: 11738.12952 | V37: 49.1452 | W37: 13.65144444 | AC37: 2.0254
A38: 28 | L38: 1.708 | M38: 0.3174 | N38: 0.7095 | O38: 8129.19186 | P38: 34.0353 | Q38: 9.45425 | R38: 9008.86131 | S38: 37.7183 | T38: 10.47730556 | U38: 11738.12952 | V38: 49.1452 | W38: 13.65144444 | AC38: 2.0254
A39: 29 | B39: 96.1882 | C39: 2.0721 | D39: 0.6594 | E39: 0.1046 | F39: 0.1031 | G39: 0.0041 | H39: 0.0205 | I39: 0.0145 | J39: 0.0047 | K39: 0.0076 | L39: 0.6366 | M39: 0.1845 | N39: 0.6982 | O39: =P39*238.8459 -> 8179.015115 | P39: 34.2439 | Q39: =P39/3.6 -> 9.512194444 | R39: =S39*238.8459 -> 9065.993249 | S39: 37.9575 | T39: =S39/3.6 -> 10.54375 | U39: 11908 | V39: 49.8549 | W39: =V39/3.6 -> 13.84858333 | X39: -20.6 | Y39: -2 | AC39: 99.9999
A40: 30 | O40: 8178.083616 | P40: 34.24 | Q40: =P40/3.6 -> 9.511111111 | R40: 9066.590364 | S40: 37.96 | T40: =S40/3.6 -> 10.54444444 | AC40: 0
A41: 31 | O41: 8179.015115 | P41: 34.2439 | Q41: =P41/3.6 -> 9.512194444 | R41: 9065.993249 | S41: 37.9575 | T41: =S41/3.6 -> 10.54375 | AC41: 0
A42: Рівень одоризації відповідає чинним нормативним документам | O42: =SUMPRODUCT(O11:O38,' розрахунок'!K7:K34)/' розрахунок'!K38 -> 8075.983563 | P42: =SUMPRODUCT(P11:P38,' розрахунок'!K7:K34)/' розрахунок'!K38 -> 33.8125275 | Q42: =SUMPRODUCT(Q11:Q38,' розрахунок'!K7:K34)/' розрахунок'!K38 -> 9.392368751 | R42: =SUMPRODUCT(R11:R38,' розрахунок'!K7:K34)/' розрахунок'!K38 -> 8948.775324 | S42: =SUMPRODUCT(S11:S38,' розрахунок'!K7:K34)/' розрахунок'!K38 -> 37.466732 | T42: =SUMPRODUCT(T11:T38,' розрахунок'!K7:K34)/' розрахунок'!K38 -> 10.40742555
H43: Середньозважене значення теплоти згоряння:
B46: Начальник управління Северодонецького ЛВУМГ Головко Ю.О.
C47: Підрозділу підприємства, якому підпорядкована лабораторія | O47: прізвище | R47: підпис | V47: дата
B48: Інженер ІІ кат. ВХАЛ Єрьоменко М.О.
C49: Лабораторія, де здійснювалось вимірювання газу | O49: прізвище | R49: підпис | V49: дата
B50: Начальник служби метрології Левкович А.М.
C51: Підрозділу, відповідального за облік газу за маршрутом | O51: прізвище | R51: підпис | V51: дата

Sheet розрахунок (hidden)
A2: Додаток до Паспорту фізико-хімічних показників природного газу по маршруту № 679
A4: Число місяця | B4: Теплота згоряння вища, МДж/м3 | C4: Донецька область | K4: Загальний обсяг газу, м3
C5: Обсяг газу переданого за добу, м3
C6: ГРС м. Авдіївка
A7: 1 | B7: =паспорт!S11 -> 37.43 | C7: =Лист1!C3+Лист1!E3 -> 296772.28 | K7: =SUM(C7:J7) -> 296772.28
A8: 2 | B8: =паспорт!S12 -> 37.43 | C8: =Лист1!C4+Лист1!E4 -> 308008.63 | K8: 308008.63
A9: 3 | B9: =паспорт!S13 -> 37.43 | C9: =Лист1!C5+Лист1!E5 -> 268725.66 | K9: 268725.66
A10: 4 | B10: =паспорт!S14 -> 37.43 | C10: =Лист1!C6+Лист1!E6 -> 221125.63 | K10: 221125.63
A11: 5 | B11: =паспорт!S15 -> 37.43 | C11: =Лист1!C7+Лист1!E7 -> 220940.64 | K11: 220940.64
A12: 6 | B12: =паспорт!S16 -> 37.43 | C12: =Лист1!C8+Лист1!E8 -> 295691.13 | K12: 295691.13
A13: 7 | B13: =паспорт!S17 -> 37.43 | C13: =Лист1!C9+Лист1!E9 -> 326058.88 | K13: 326058.88
A14: 8 | B14: =паспорт!S18 -> 37.43 | C14: =Лист1!C10+Лист1!E10 -> 295809.84 | K14: 295809.84
A15: 9 | B15: =паспорт!S19 -> 37.43 | C15: =Лист1!C11+Лист1!E11 -> 283068.75 | K15: 283068.75
A16: 10 | B16: =паспорт!S20 -> 37.43 | C16: =Лист1!C12+Лист1!E12 -> 258710.11 | K16: 258710.11
A17: 11 | B17: =паспорт!S21 -> 37.43 | C17: =Лист1!C13+Лист1!E13 -> 230519.25 | K17: 230519.25
A18: 12 | B18: =паспорт!S22 -> 37.43 | C18: =Лист1!C14+Лист1!E14 -> 192032.69 | K18: 192032.69
A19: 13 | B19: =паспорт!S23 -> 37.43 | C19: =Лист1!C15+Лист1!E15 -> 159550.52 | K19: 159550.52
A20: 14 | B20: =паспорт!S24 -> 37.43 | C20: =Лист1!C16+Лист1!E16 -> 150501 | K20: 150501
A21: 15 | B21: =паспорт!S25 -> 37.43 | C21: =Лист1!C17+Лист1!E17 -> 149473.5 | K21: 149473.5
A22: 16 | B22: =паспорт!S26 -> 37.43 | C22: =Лист1!C18+Лист1!E18 -> 150848.73 | K22: 150848.73
A23: 17 | B23: =паспорт!S27 -> 37.43 | C23: =Лист1!C19+Лист1!E19 -> 150128.33 | K23: 150128.33
A24: 18 | B24: =паспорт!S28 -> 37.43 | C24: =Лист1!C20+Лист1!E20 -> 143501.94 | K24: 143501.94
A25: 19 | B25: =паспорт!S29 -> 37.43 | C25: =Лист1!C21+Лист1!E21 -> 138853.52 | K25: 138853.52
A26: 20 | B26: =паспорт!S30 -> 37.43 | C26: =Лист1!C22+Лист1!E22 -> 144079.72 | K26: 144079.72
A27: 21 | B27: =паспорт!S31 -> 37.43 | C27: =Лист1!C23+Лист1!E23 -> 141085.11 | K27: 141085.11
A28: 22 | B28: =паспорт!S32 -> 37.43 | C28: =Лист1!C24+Лист1!E24 -> 143001.8 | K28: 143001.8
A29: 23 | B29: =паспорт!S33 -> 37.43 | C29: =Лист1!C25+Лист1!E25 -> 143066.83 | K29: 143066.83
A30: 24 | B30: =паспорт!S34 -> 37.7183 | C30: =Лист1!C26+Лист1!E26 -> 136801.69 | K30: 136801.69
A31: 25 | B31: =паспорт!S35 -> 37.7183 | C31: =Лист1!C27+Лист1!E27 -> 138029.3 | K31: 138029.3
A32: 26 | B32: =паспорт!S36 -> 37.7183 | C32: =Лист1!C28+Лист1!E28 -> 141387.95 | K32: 141387.95
A33: 27 | B33: =паспорт!S37 -> 37.7183 | C33: =Лист1!C29+Лист1!E29 -> 143824.8 | K33: 143824.8
A34: 28 | B34: =паспорт!S38 -> 37.7183 | C34: =Лист1!C30+Лист1!E30 -> 142501.91 | K34: 142501.91
A35: 29 | B35: 37.9575 | C35: 104484.13 | D35: 2550.58 | E35: 172597.3 | F35: 6731.51 | G35: 28282.91 | H35: 71078.45 | I35: 3780.78 | J35: 16478.54 | K35: 405984.2
A36: 30 | B36: 37.96 | C36: 93755.22 | D36: 2251.65 | E36: 156928.03 | F36: 6054.5 | G36: 26299.84 | H36: 60324.38 | I36: 3142.81 | J36: 15516.28 | K36: 364272.71
A37: 31 | B37: 37.9575 | C37: 92050.88 | D37: 3124.98 | E37: 157999.45 | F37: 6122.1 | G37: 23698.82 | H37: 60708.33 | I37: 3145.17 | J37: 14948.5 | K37: 361798.23
A38: Загальний обсяг газу, м3 | C38: =SUM(C7:C34) -> 5514100.14 | K38: =SUM(K7:K34) -> 5514100.14
A39: Енергія, МДж | C39: =SUMPRODUCT(B7:B34,C7:C34) -> 206595312.2 | K39: =SUMPRODUCT(B7:B34,K7:K34) -> 206595312.2
A40: Теплота згоряння (середньозважене значення за місяць), МДж/м³ | C40: =C39/C38 -> 37.466732 | K40: =K39/K38 -> 37.466732
A41: Теплота згоряння (середньозважене значення за місяць), ккал/м³ | C41: =C40*238.8459 -> 8948.775324 | K41: =K40*238.8459 -> 8948.775324
A42: Теплота згоряння (середньозважене значення за місяць), кВт*год./м³ | C42: =C40/3.6 -> 10.40742555 | K42: =K40/3.6 -> 10.40742555

Sheet додаток
A2: Додаток до Паспорту фізико-хімічних показників природного газу № 679
A4: Область | B4: ГРС, прямий споживач | C4: Cередньозважене значення вищої теплоти згоряння
C5: МДж/м³ | D5: ккал/м³ | E5: кВт*год./м³
A6: Донецька область | B6: =' розрахунок'!C6 -> ГРС м. Авдіївка | C6: 37.466732 | D6: 8948.775324 | E6: 10.40742555
A7: Середньозважене значення вищої теплоти згоряння по маршруту № 679 | C7: 37.466732 | D7: 8948.775324 | E7: 10.40742555
A11: Начальник управління Северодонецького ЛВУМГ Головко Ю.О.
A12: Підрозділу підприємства, якому підпорядкована лабораторія | D12: прізвище | E12: підпис | F12: дата
A13: Інженер ІІ кат. ВХАЛ Єрьоменко М.О.
A14: Лабораторія, де здійснювалось вимірювання газу | D14: прізвище | E14: підпис | F14: дата
A15: Начальник служби метрології Левкович А.М.
A16: Підрозділу, відповідального за облік газу за маршрутом | D16: прізвище | E16: підпис | F16: дата

Sheet variablesList (hidden)
A1: 3 | B1: x:\gaysin | C1: 10, 11, 24, 25, 127, 128, 132, 180, 207, 215 | D1: x:\
B2: x:\Illinci
B3: x:\Talne

Sheet Лист1
A1: подобъектов объекта ГРС Авдеевка (Макеевка) (осн.) за 2/17.
A2: День | C2: Авдеевка (счетчик) | E2: Авдеевка (перепад) | G2: ГРС Авдеевка (Макеевка)
A3: 1 | C3: 0 | E3: 296772.28 | G3: 296772.28
A4: 2 | C4: 0 | E4: 308008.63 | G4: 308008.63
A5: 3 | C5: 0 | E5: 268725.66 | G5: 268725.66
A6: 4 | C6: 0 | E6: 221125.63 | G6: 221125.63
A7: 5 | C7: 0 | E7: 220940.64 | G7: 220940.64
A8: 6 | C8: 0 | E8: 295691.13 | G8: 295691.13
A9: 7 | C9: 0 | E9: 326058.88 | G9: 326058.88
A10: 8 | C10: 0 | E10: 295809.84 | G10: 295809.84
A11: 9 | C11: 0 | E11: 283068.75 | G11: 283068.75
A12: 10 | C12: 0 | E12: 258710.11 | G12: 258710.11
A13: 11 | C13: 0 | E13: 230519.25 | G13: 230519.25
A14: 12 | C14: 0 | E14: 192032.69 | G14: 192032.69
A15: 13 | C15: 0 | E15: 159550.52 | G15: 159550.52
A16: 14 | C16: 0 | E16: 150501 | G16: 150501
A17: 15 | B17: A | C17: 0 | D17: A | E17: 149473.5 | F17: A | G17: 149473.5
A18: 16 | C18: 0 | E18: 150848.73 | G18: 150848.73
A19: 17 | C19: 0 | E19: 150128.33 | G19: 150128.33
A20: 18 | C20: 0 | E20: 143501.94 | G20: 143501.94
A21: 19 | C21: 0 | E21: 138853.52 | G21: 138853.52
A22: 20 | C22: 0 | E22: 144079.72 | G22: 144079.72
A23: 21 | C23: 0 | E23: 141085.11 | G23: 141085.11
A24: 22 | C24: 0 | E24: 143001.8 | G24: 143001.8
A25: 23 | C25: 0 | E25: 143066.83 | G25: 143066.83
A26: 24 | B26: B | C26: 0 | D26: B | E26: 136801.69 | F26: B | G26: 136801.69
A27: 25 | C27: 0 | E27: 138029.3 | G27: 138029.3
A28: 26 | C28: 0 | E28: 141387.95 | G28: 141387.95
A29: 27 | C29: 0 | E29: 143824.8 | G29: 143824.8
A30: 28 | C30: 0 | E30: 142501.91 | G30: 142501.91
A31: Итого | B31: AB | C31: 0 | D31: AB | E31: 5514100.09 | F31: AB | G31: 5514100.09
